fUSD/lending_fUSD_20240329
["ID","MTS","AMOUNT","RATE_DAILY","PERIOD"]
[320975698,1711726262576,-500.0,0.0005041,120]
[320975699,1711726262585,-500.0,0.0005041,120]
[320975700,1711726262594,-500.0,0.0005041,120]
[320975701,1711726262603,-7484.68,0.0005041,120]
[320975702,1711726262613,-1354.15,0.0005041,120]
[320975703,1711726262623,-500.0,0.0005041,120]
[320975704,1711726262632,-1280.61,0.0005041,120]
[320975705,1711726262641,-500.0,0.0005041,120]
[320975706,1711726262651,-500.0,0.0005041,120]
[320975707,1711726262661,-3298.9,0.0005041,120]
[320975708,1711726262670,-553.1,0.0005041,120]
[320975709,1711726262680,-3130.3,0.0005041,120]
[320975710,1711726262689,-2135.45,0.0005041,120]
[320975711,1711726262698,-500.0,0.0005041,120]
[320975712,1711726262707,-1018.52,0.0005041,120]
[320975713,1711726262717,-2568.4,0.0005041,120]
[320975714,1711726262726,-594.87,0.0005041,120]
[320975715,1711726262735,-649.69,0.0005041,120]
[320975716,1711726262745,-824.29,0.0005041,120]
[320975717,1711726262754,-628.61,0.0005041,120]
[320975718,1711726262764,-1054.95,0.0005041,120]
[320975719,1711726262773,-947.76,0.0005041,120]
[320975720,1711726262781,-500.0,0.0005041,120]
[320975721,1711726262791,-500.0,0.0005041,120]
[320975722,1711726262800,-500.0,0.0005041,120]
[320975723,1711726262809,-805.33,0.0005041,120]
[320975724,1711726262818,-500.0,0.0005041,120]
[320975725,1711726262827,-652.14,0.0005041,120]
[320975726,1711726262836,-500.0,0.0005041,120]
[320975727,1711726262845,-621.16169885,0.0005041,120]
[320975728,1711726262855,-1684.07,0.0005041,120]
[320975729,1711726262864,-1222.42,0.0005041,120]
[320975730,1711726262874,-500.0,0.0005041,120]
[320975731,1711726262883,-500.0,0.0005041,120]
[320975732,1711726262892,-500.0,0.0005041,120]
[320975733,1711726262902,-647.43,0.0005041,120]
[320975734,1711726262911,-637.47,0.0005041,120]
[320975735,1711726262921,-500.0,0.0005041,120]
[320975736,1711726262930,-929.07,0.0005041,120]
[320975737,1711726262940,-500.0,0.0005041,120]
[320975738,1711726262951,-500.0,0.0005041,120]
[320975739,1711726262960,-506.23,0.0005041,120]
[320975740,1711726262971,-1752.94,0.0005041,120]
[320975741,1711726262980,-1482.27,0.0005041,120]
[320975742,1711726262989,-500.0,0.0005041,120]
[320975743,1711726262998,-1080.07,0.0005041,120]
[320975744,1711726263007,-500.0,0.0005041,120]
[320975745,1711726263017,-917.61,0.0005041,120]
[320975746,1711726263026,-500.0,0.0005041,120]
[320975747,1711726263035,-500.0,0.0005041,120]
[320975748,1711726263046,-824.53,0.0005041,120]
[320975749,1711726263055,-641.26,0.0005041,120]
[320975750,1711726263065,-500.0,0.0005041,120]
[320975751,1711726263074,-579.18,0.0005041,120]
[320975752,1711726263084,-572.87,0.0005041,120]
[320975753,1711726263093,-500.0,0.0005041,120]
[320975754,1711726263103,-1389.6,0.0005041,120]
[320975755,1711726263112,-975.56,0.0005041,120]
[320975756,1711726263121,-500.0,0.0005041,120]
[320975757,1711726263130,-500.0,0.0005041,120]
[320975758,1711726263145,-500.0,0.0005041,120]
[320975759,1711726263155,-500.0,0.0005041,120]
[320975760,1711726263164,-227.38888889,0.00050411,120]
[320975761,1711726263173,-335.80220362,0.0005045,2]
[320975762,1711726263184,-153.26008282,0.00050583,27]
[320975763,1711726263194,-183.64012445,0.00050584,2]
[320975764,1711726263204,-235.12567628,0.00050584,2]
[320975765,1711726263213,-777.20777637,0.00050584,2]
[320975766,1711726263224,-166.37504124,0.00050584,120]
[320975767,1711726263233,-434.42,0.00050598,2]
[320975768,1711726263243,-150.5,0.00050654,15]
[320975769,1711726263253,-157.52568574,0.00050661,60]
[320975770,1711726263262,-150.5,0.00050664,15]
[320975771,1711726263272,-150.5,0.00050674,15]
[320975772,1711726263281,-2342.08393912,0.00050682,4]
[320975773,1711726263293,-3045.64301195,0.00050682,40]
[320975774,1711726263303,-155.0,0.00050682,4]
[320975775,1711726263312,-281.17758265,0.00050683,4]
[320975776,1711726263321,-177491.72228208,0.00050683,2]
[320975777,1711726263331,-267.92805569,0.00050683,4]
[320975778,1711726263340,-500.0,0.00050684,120]
[320975779,1711726263349,-500.0,0.00050684,120]
[320975780,1711726263358,-500.0,0.00050684,120]
[320975781,1711726263368,-500.0,0.00050684,30]
[320975782,1711726263377,-500.0,0.00050684,120]
[320975783,1711726263387,-500.0,0.00050684,120]
[320975784,1711726263396,-500.0,0.00050684,120]
[320975785,1711726263406,-500.0,0.00050684,120]
[320975786,1711726263415,-500.0,0.00050684,120]
[320975787,1711726263425,-500.0,0.00050684,120]
[320975788,1711726263435,-500.0,0.00050684,120]
[320975789,1711726263445,-500.0,0.00050684,120]
[320975790,1711726263454,-500.0,0.00050684,120]
[320975791,1711726263463,-500.0,0.00050684,120]
[320975792,1711726263473,-500.0,0.00050684,120]
[320975793,1711726263482,-500.0,0.00050684,120]
[320975794,1711726263492,-531.30202197,0.00050684,120]
[320975795,1711726263502,-500.0,0.00050684,120]
[320975796,1711726263511,-500.0,0.00050684,120]
[320975797,1711726263521,-500.0,0.00050684,2]
[320975798,1711726263530,-500.0,0.00050684,120]
[320975799,1711726263540,-500.0,0.00050684,120]
[320975800,1711726263551,-500.0,0.00050684,120]
[320975801,1711726263560,-500.0,0.00050684,120]
[320975802,1711726263570,-500.0,0.00050684,120]
[320975803,1711726263579,-500.0,0.00050684,120]
[320975804,1711726263588,-500.0,0.00050684,120]
[320975805,1711726263597,-500.0,0.00050684,120]
[320975806,1711726263606,-500.0,0.00050684,120]
[320975807,1711726263615,-500.0,0.00050684,2]
[320975808,1711726263625,-500.0,0.00050684,120]
[320975809,1711726263633,-500.0,0.00050684,120]
[320975810,1711726263643,-500.0,0.00050684,120]
[320975811,1711726263652,-183.83677638,0.00050684,120]
[320975812,1711726263660,-500.0,0.00050684,120]
[320975813,1711726263669,-500.0,0.00050684,120]
[320975814,1711726263678,-500.0,0.00050684,120]
[320975815,1711726263687,-500.0,0.00050684,2]
[320975816,1711726263696,-500.0,0.00050684,120]
[320975817,1711726263705,-500.0,0.00050684,120]
[320975818,1711726263714,-900.75,0.00050684,120]
[320975819,1711726263723,-364.08343587,0.00050684,120]
[320975820,1711726263732,-500.0,0.00050684,120]
[320975821,1711726263740,-500.0,0.00050684,120]
[320975822,1711726263749,-500.0,0.00050684,120]
[320975823,1711726263758,-500.0,0.00050684,120]
[320975824,1711726263767,-500.0,0.00050684,120]
[320975825,1711726263775,-500.0,0.00050684,120]
[320975826,1711726263784,-541.66,0.00050684,120]
[320975827,1711726263793,-500.0,0.00050684,120]
[320975828,1711726263801,-500.0,0.00050684,120]
[320975829,1711726263810,-500.0,0.00050684,120]
[320975830,1711726263819,-500.0,0.00050684,120]
[320975831,1711726263828,-500.0,0.00050684,120]
[320975832,1711726263837,-500.0,0.00050684,120]
[320975833,1711726263961,-500.0,0.00050684,120]
[320975834,1711726263980,-500.0,0.00050684,120]
[320975835,1711726263990,-500.0,0.00050684,120]
[320975836,1711726263999,-500.0,0.00050684,120]
[320975837,1711726264009,-500.0,0.00050684,120]
[320975838,1711726264019,-500.0,0.00050684,120]
[320975839,1711726264029,-500.0,0.00050684,120]
[320975840,1711726264038,-500.0,0.00050684,120]
[320975841,1711726264051,-500.0,0.00050684,120]
[320975842,1711726264060,-500.0,0.00050684,120]
[320975843,1711726264069,-500.0,0.00050684,120]
[320975844,1711726264078,-500.0,0.00050684,120]
[320975845,1711726264087,-500.0,0.00050684,120]
[320975846,1711726264096,-500.0,0.00050684,120]
[320975847,1711726264105,-500.0,0.00050684,120]
[320975848,1711726264115,-500.0,0.00050684,120]
[320975849,1711726264124,-500.0,0.00050684,120]
[320975850,1711726264134,-500.0,0.00050684,120]
[320975851,1711726264145,-500.0,0.00050684,120]
[320975852,1711726264154,-500.0,0.00050684,120]
[320975853,1711726264163,-500.0,0.00050684,120]
[320975854,1711726264173,-500.0,0.00050684,120]
[320975855,1711726264182,-500.0,0.00050684,120]
[320975856,1711726264191,-524.41,0.00050684,120]
[320975857,1711726264200,-500.0,0.00050684,120]
[320975858,1711726264210,-500.0,0.00050684,120]
[320975859,1711726264221,-500.0,0.00050684,120]
[320975860,1711726264232,-593.93,0.00050684,120]
[320975861,1711726264242,-500.0,0.00050684,120]
[320975862,1711726264252,-174.95,0.00050684,120]
[320975863,1711726264262,-2105.64,0.00050684,120]
[320975864,1711726264271,-500.0,0.00050684,120]
[320975865,1711726264280,-500.0,0.00050684,120]
[320975866,1711726264290,-500.0,0.00050684,120]
[320975867,1711726264302,-500.0,0.00050684,120]
[320975868,1711726264311,-420.23475037,0.00050684,120]
[320975869,1711726264321,-500.0,0.00050684,120]
[320975870,1711726264330,-500.0,0.00050684,120]
[320975871,1711726264340,-500.0,0.00050684,120]
[320975872,1711726264350,-832.0,0.00050684,120]
[320975873,1711726264359,-500.0,0.00050684,120]
[320975874,1711726264369,-500.0,0.00050684,120]
[320975875,1711726264378,-500.0,0.00050684,120]
[320975876,1711726264388,-500.0,0.00050684,120]
[320975877,1711726264397,-500.0,0.00050684,120]
[320975878,1711726264406,-500.0,0.00050684,120]
[320975879,1711726264416,-3000.0,0.00050684,120]
[320975880,1711726264426,-500.0,0.00050684,120]
[320975881,1711726264447,-500.0,0.00050684,120]
[320975882,1711726264468,-500.0,0.00050684,120]
[320975883,1711726264477,-500.0,0.00050684,120]
[320975884,1711726264486,-500.0,0.00050684,120]
[320975885,1711726264495,-500.0,0.00050684,120]
[320975886,1711726264504,-500.0,0.00050684,120]
[320975887,1711726264514,-500.0,0.00050684,120]
[320975888,1711726264523,-500.0,0.00050684,120]
[320975889,1711726264532,-500.0,0.00050684,120]
[320975890,1711726264542,-500.0,0.00050684,120]
[320975891,1711726264552,-500.0,0.00050684,120]
[320975892,1711726264561,-500.0,0.00050684,120]
[320975893,1711726264571,-500.0,0.00050684,120]
[320975894,1711726264580,-617.75434315,0.00050684,120]
[320975895,1711726264589,-500.0,0.00050684,120]
[320975896,1711726264599,-500.0,0.00050684,120]
[320975897,1711726264608,-500.0,0.00050684,120]
[320975898,1711726264617,-1095.45,0.00050684,120]
[320975899,1711726264627,-500.0,0.00050684,120]
[320975900,1711726264636,-500.0,0.00050684,120]
[320975901,1711726264645,-500.0,0.00050684,120]
[320975902,1711726264655,-1919.57,0.00050684,120]
[320975903,1711726264664,-500.0,0.00050684,120]
[320975904,1711726264673,-500.0,0.00050684,120]
[320975905,1711726264683,-500.0,0.00050684,120]
[320975906,1711726264693,-500.0,0.00050684,120]
[320975907,1711726264702,-790.31,0.00050684,120]
[320975908,1711726264712,-500.0,0.00050684,120]
[320975909,1711726264721,-500.0,0.00050684,120]
[320975910,1711726264730,-3250.79,0.00050684,120]
[320975911,1711726264739,-500.0,0.00050684,120]
[320975912,1711726264749,-526.41869502,0.00050684,120]
[320975913,1711726264758,-543.43,0.00050684,120]
[320975914,1711726264767,-2026.92,0.00050684,120]
[320975915,1711726264776,-2794.01,0.00050684,120]
[320975916,1711726264785,-508.65,0.00050684,120]
[320975917,1711726264796,-543.18,0.00050684,120]
[320975918,1711726264805,-500.0,0.00050684,120]
[320975919,1711726264814,-500.0,0.00050684,120]
[320975920,1711726264823,-725.25,0.00050684,120]
[320975921,1711726264832,-500.0,0.00050684,120]
[320975922,1711726264842,-500.0,0.00050684,120]
[320975923,1711726264851,-500.0,0.00050684,120]
[320975924,1711726264860,-1985.65,0.00050684,120]
[320975925,1711726264869,-500.0,0.00050684,120]
[320975926,1711726264878,-778.03,0.00050684,120]
[320975927,1711726264887,-966.8,0.00050684,120]
[320975928,1711726264896,-15575.03,0.00050684,120]
[320975929,1711726264905,-500.0,0.00050684,120]
[320975930,1711726264914,-1347.71,0.00050684,120]
[320975931,1711726264923,-552.41115887,0.00050684,120]
[320975932,1711726264932,-500.0,0.00050684,120]
[320975933,1711726264942,-1542.42,0.00050684,120]
[320975934,1711726264951,-500.0,0.00050684,120]
[320975935,1711726264960,-500.0,0.00050684,120]
[320975936,1711726264969,-1449.82,0.00050684,120]
[320975937,1711726264979,-500.0,0.00050684,80]
[320975938,1711726264988,-2716.26,0.00050684,120]
[320975939,1711726264998,-764.96,0.00050684,120]
[320975940,1711726265008,-1663.53,0.00050684,120]
[320975941,1711726265018,-500.0,0.00050684,120]
[320975942,1711726265028,-1151.51,0.00050684,120]
[320975943,1711726265037,-500.0,0.00050684,120]
[320975944,1711726265048,-500.0,0.00050684,120]
[320975945,1711726265057,-769.64,0.00050684,120]
[320975946,1711726265067,-1016.62,0.00050684,120]
[320975947,1711726265077,-784.23,0.00050684,120]
[320975948,1711726265088,-500.0,0.00050684,120]
[320975949,1711726265098,-500.0,0.00050684,120]
[320975950,1711726265108,-500.0,0.00050684,120]
[320975951,1711726265118,-1622.26,0.00050684,120]
[320975952,1711726265132,-500.0,0.00050684,120]
[320975953,1711726265142,-500.0,0.00050684,120]
[320975954,1711726265152,-1424.61,0.00050684,120]
[320975955,1711726265162,-500.0,0.00050684,120]
[320975956,1711726265173,-500.0,0.00050684,120]
[320975957,1711726265183,-500.0,0.00050684,120]
[320975958,1711726265194,-815.78,0.00050684,120]
[320975959,1711726265206,-500.0,0.00050684,120]
[320975960,1711726265216,-500.0,0.00050684,120]
[320975961,1711726265226,-500.0,0.00050684,120]
[320975962,1711726265236,-500.0,0.00050684,120]
[320975963,1711726265246,-500.0,0.00050684,120]
[320975964,1711726265256,-500.0,0.00050684,60]
[320975965,1711726265266,-992.25,0.00050684,120]
[320975966,1711726265275,-11718.94,0.00050684,120]
[320975967,1711726265285,-743.51,0.00050684,120]
[320975968,1711726265297,-765.17,0.00050684,120]
[320975969,1711726265307,-890.38,0.00050684,120]
[320975970,1711726265316,-553.36,0.00050684,120]
[320975971,1711726265326,-8521.15,0.00050684,120]
[320975972,1711726265335,-500.0,0.00050684,120]
[320975973,1711726265345,-500.0,0.00050684,120]
[320975974,1711726265358,-500.0,0.00050684,120]
[320975975,1711726265367,-500.0,0.00050684,120]
[320975976,1711726265377,-500.0,0.00050684,120]
[320975977,1711726265388,-648.88,0.00050684,120]
[320975978,1711726265398,-500.0,0.00050684,120]
[320975979,1711726265407,-1919.3,0.00050684,120]
[320975980,1711726265417,-500.0,0.00050684,120]
[320975981,1711726265427,-500.0,0.00050684,120]
[320975982,1711726265437,-2207.99,0.00050684,120]
[320975983,1711726265447,-1309.66,0.00050684,120]
[320975984,1711726265457,-500.0,0.00050684,120]
[320975985,1711726265466,-557.08,0.00050684,120]
[320975986,1711726265476,-358.83974314,0.00050684,120]
[320975987,1711726265486,-1108.08,0.00050684,120]
[320975988,1711726265495,-1833.17,0.00050684,120]
[320975989,1711726265505,-500.0,0.00050684,120]
[320975990,1711726265515,-607.25,0.00050684,120]
[320975991,1711726265524,-815.81,0.00050684,120]
[320975992,1711726265534,-1018.76,0.00050684,120]
[320975993,1711726265543,-862.41,0.00050684,120]
[320975994,1711726265554,-500.0,0.00050684,120]
[320975995,1711726265565,-500.0,0.00050684,120]
[320975996,1711726265575,-230.37487242,0.00050684,120]
[320975997,1711726265585,-500.0,0.00050684,120]
[320975998,1711726265595,-1702.99,0.00050684,120]
[320975999,1711726265605,-1165.7,0.00050684,120]
[320976000,1711726265614,-1004.77,0.00050684,120]
[320976001,1711726265624,-696.93,0.00050684,120]
[320976002,1711726265633,-500.0,0.00050684,120]
[320976003,1711726265644,-500.0,0.00050684,120]
[320976004,1711726265654,-500.0,0.00050684,120]
[320976005,1711726265663,-500.0,0.00050684,120]
[320976006,1711726265673,-1354.93,0.00050684,21]
[320976007,1711726265683,-500.0,0.00050684,120]
[320976008,1711726265693,-977.65,0.00050684,120]
[320976009,1711726265703,-1113.41,0.00050684,120]
[320976010,1711726265713,-500.0,0.00050684,120]
[320976011,1711726265723,-3333.95,0.00050684,120]
[320976012,1711726265733,-500.0,0.00050684,120]
[320976013,1711726265862,-500.0,0.00050684,120]
[320976014,1711726265872,-572.67,0.00050684,120]
[320976015,1711726265882,-683.76,0.00050684,120]
[320976016,1711726265893,-500.0,0.00050684,120]
[320976017,1711726265903,-500.0,0.00050684,120]
[320976018,1711726265913,-500.0,0.00050684,120]
[320976019,1711726265924,-7484.68,0.00050684,120]
[320976020,1711726265934,-1354.15,0.00050684,120]
[320976021,1711726265943,-500.0,0.00050684,120]
[320976022,1711726265954,-1280.61,0.00050684,120]
[320976023,1711726265963,-500.0,0.00050684,120]
[320976024,1711726265973,-500.0,0.00050684,120]
[320976025,1711726265983,-3298.9,0.00050684,120]
[320976026,1711726265994,-553.1,0.00050684,120]
[320976027,1711726266003,-3130.3,0.00050684,120]
[320976028,1711726266013,-2135.45,0.00050684,120]
[320976029,1711726266022,-1018.52,0.00050684,120]
[320976030,1711726266032,-2568.4,0.00050684,120]
[320976031,1711726266042,-594.87,0.00050684,120]
[320976032,1711726266057,-824.29,0.00050684,120]
[320976033,1711726266067,-628.61,0.00050684,120]
[320976034,1711726266078,-1054.95,0.00050684,120]
[320976035,1711726266088,-947.76,0.00050684,120]
[320976036,1711726266099,-500.0,0.00050684,120]
[320976037,1711726266109,-500.0,0.00050684,120]
[320976038,1711726266119,-500.0,0.00050684,120]
[320976039,1711726266130,-805.33,0.00050684,120]
[320976040,1711726266142,-500.0,0.00050684,120]
[320976041,1711726266153,-652.14,0.00050684,120]
[320976042,1711726266163,-500.0,0.00050684,120]
[320976043,1711726266174,-1684.07,0.00050684,120]
[320976044,1711726266184,-1222.42,0.00050684,120]
[320976045,1711726266194,-500.0,0.00050684,120]
[320976046,1711726266205,-500.0,0.00050684,120]
[320976047,1711726266215,-500.0,0.00050684,120]
[320976048,1711726266225,-647.43,0.00050684,120]
[320976049,1711726266235,-637.47,0.00050684,120]
[320976050,1711726266245,-500.0,0.00050684,120]
[320976051,1711726266255,-929.07,0.00050684,120]
[320976052,1711726266266,-500.0,0.00050684,120]
[320976053,1711726266277,-500.0,0.00050684,120]
[320976054,1711726266288,-506.23,0.00050684,120]
[320976055,1711726266301,-1752.94,0.00050684,120]
[320976056,1711726266311,-1482.27,0.00050684,120]
[320976057,1711726266321,-500.0,0.00050684,120]
[320976058,1711726266331,-1080.07,0.00050684,120]
[320976059,1711726266340,-500.0,0.00050684,120]
[320976060,1711726266350,-917.61,0.00050684,120]
[320976061,1711726266360,-500.0,0.00050684,120]
[320976062,1711726266369,-500.0,0.00050684,120]
[320976063,1711726266379,-824.53,0.00050684,120]
[320976064,1711726266390,-641.26,0.00050684,120]
[320976065,1711726266400,-500.0,0.00050684,120]
[320976066,1711726266410,-579.18,0.00050684,120]
[320976067,1711726266420,-572.87,0.00050684,120]
[320976068,1711726266430,-500.0,0.00050684,120]
[320976069,1711726266440,-1389.6,0.00050684,120]
[320976070,1711726266449,-975.56,0.00050684,120]
[320976071,1711726266459,-500.0,0.00050684,120]
[320976072,1711726266470,-500.0,0.00050684,120]
[320976073,1711726266480,-500.0,0.00050684,120]
[320976074,1711726266490,-500.0,0.00050684,120]
[320976075,1711726266501,-151.22451208,0.00050798,47]
[320976076,1711726266512,-2763.50777426,0.00050821,120]
[320976077,1711726266522,-215.21349235,0.00050858,2]
[320976078,1711726266533,-317.32074509,0.00050858,48]
[320976079,1711726266543,-153.29621667,0.00050876,60]
[320976080,1711726266558,-2100.0,0.000509,18]
[320976081,1711726266569,-152.41256319,0.0005093,60]
[320976082,1711726266579,-651.09584144,0.00050955,2]
[320976083,1711726266589,-500.0,0.00050958,120]
[320976084,1711726266599,-500.0,0.00050958,120]
[320976085,1711726266609,-500.0,0.00050958,120]
[320976086,1711726266619,-500.0,0.00050958,120]
[320976087,1711726266629,-500.0,0.00050958,120]
[320976088,1711726266639,-500.0,0.00050958,120]
[320976089,1711726266650,-215.71,0.00050958,120]
[320976090,1711726266661,-500.0,0.00050958,120]
[320976091,1711726266672,-500.0,0.00050958,120]
[320976092,1711726266682,-500.0,0.00050958,120]
[320976093,1711726266693,-500.0,0.00050958,120]
[320976094,1711726266703,-500.0,0.00050958,120]
[320976095,1711726266713,-500.0,0.00050958,120]
[320976096,1711726266741,-500.0,0.00050958,120]
[320976097,1711726266759,-500.0,0.00050958,120]
[320976098,1711726266782,-500.0,0.00050958,120]
[320976099,1711726266812,-500.0,0.00050958,120]
[320976100,1711726266831,-500.0,0.00050958,2]
[320976101,1711726266851,-500.0,0.00050958,120]
[320976102,1711726266872,-500.0,0.00050958,120]
[320976103,1711726266891,-500.0,0.00050958,120]
[320976104,1711726266910,-500.0,0.00050958,120]
[320976105,1711726266926,-500.0,0.00050958,120]
[320976106,1711726266945,-500.0,0.00050958,120]
[320976107,1711726266967,-500.0,0.00050958,120]
[320976108,1711726266984,-500.0,0.00050958,120]
[320976109,1711726267000,-500.0,0.00050958,120]
[320976110,1711726267019,-500.0,0.00050958,2]
[320976111,1711726267035,-500.0,0.00050958,120]
[320976112,1711726267054,-500.0,0.00050958,120]
[320976113,1711726267070,-500.0,0.00050958,120]
[320976114,1711726267085,-500.0,0.00050958,120]
[320976115,1711726267100,-500.0,0.00050958,120]
[320976116,1711726267116,-500.0,0.00050958,120]
[320976117,1711726267132,-500.0,0.00050958,2]
[320976118,1711726267148,-500.0,0.00050958,120]
[320976119,1711726267163,-500.0,0.00050958,120]
[320976120,1711726267180,-900.75,0.00050958,120]
[320976121,1711726267194,-500.0,0.00050958,120]
[320976122,1711726267210,-500.0,0.00050958,120]
[320976123,1711726267226,-500.0,0.00050958,120]
[320976124,1711726267241,-500.0,0.00050958,120]
[320976125,1711726267257,-500.0,0.00050958,120]
[320976126,1711726267274,-500.0,0.00050958,120]
[320976127,1711726267291,-541.66,0.00050958,120]
[320976128,1711726267312,-500.0,0.00050958,120]
[320976129,1711726267329,-500.0,0.00050958,120]
[320976130,1711726267345,-500.0,0.00050958,120]
[320976131,1711726267361,-500.0,0.00050958,120]
[320976132,1711726267378,-500.0,0.00050958,120]
[320976133,1711726267395,-500.0,0.00050958,120]
[320976134,1711726267411,-500.0,0.00050958,120]
[320976135,1711726267427,-500.0,0.00050958,120]
[320976136,1711726267443,-500.0,0.00050958,120]
[320976137,1711726267460,-500.0,0.00050958,120]
[320976138,1711726267477,-500.0,0.00050958,120]
[320976139,1711726267493,-500.0,0.00050958,120]
[320976140,1711726267509,-500.0,0.00050958,120]
[320976141,1711726267527,-500.0,0.00050958,120]
[320976142,1711726267542,-336.89836463,0.00050958,120]
[320976143,1711726267562,-500.0,0.00050958,120]
[320976144,1711726267578,-500.0,0.00050958,120]
[320976145,1711726267594,-500.0,0.00050958,120]
[320976146,1711726267612,-500.0,0.00050958,120]
[320976147,1711726267629,-460.51357745,0.00050958,120]
[320976148,1711726267646,-500.0,0.00050958,120]
[320976149,1711726267663,-500.0,0.00050958,120]
[320976150,1711726267681,-395.26179204,0.00050958,120]
[320976151,1711726267698,-500.0,0.00050958,120]
[320976152,1711726267715,-500.0,0.00050958,120]
[320976153,1711726267732,-500.0,0.00050958,120]
[320976154,1711726267750,-500.0,0.00050958,120]
[320976155,1711726267767,-500.0,0.00050958,120]
[320976156,1711726267785,-524.41,0.00050958,120]
[320976157,1711726267802,-500.0,0.00050958,120]
[320976158,1711726267818,-500.0,0.00050958,120]
[320976159,1711726267835,-500.0,0.00050958,120]
[320976160,1711726267851,-593.93,0.00050958,120]
[320976161,1711726267866,-500.0,0.00050958,120]
[320976162,1711726267880,-174.95,0.00050958,120]
[320976163,1711726267896,-2105.64,0.00050958,120]
[320976164,1711726267910,-506.13676818,0.00050958,120]
[320976165,1711726267925,-500.0,0.00050958,120]
[320976166,1711726267940,-500.0,0.00050958,120]
[320976167,1711726267957,-500.0,0.00050958,120]
[320976168,1711726267967,-500.0,0.00050958,120]
[320976169,1711726267977,-500.0,0.00050958,120]
[320976170,1711726267986,-500.0,0.00050958,120]
[320976171,1711726267995,-832.0,0.00050958,120]
[320976172,1711726268005,-500.0,0.00050958,120]
[320976173,1711726268014,-500.0,0.00050958,120]
[320976174,1711726268024,-500.0,0.00050958,120]
[320976175,1711726268033,-500.0,0.00050958,120]
[320976176,1711726268043,-500.0,0.00050958,120]
[320976177,1711726268267,-500.0,0.00050958,120]
[320976178,1711726268305,-500.0,0.00050958,120]
[320976179,1711726268317,-500.0,0.00050958,120]
[320976180,1711726268327,-500.0,0.00050958,120]
[320976181,1711726268337,-500.0,0.00050958,120]
[320976182,1711726268348,-500.0,0.00050958,120]
[320976183,1711726268358,-500.0,0.00050958,120]
[320976184,1711726268369,-500.0,0.00050958,120]
[320976185,1711726268380,-500.0,0.00050958,120]
[320976186,1711726268391,-500.0,0.00050958,120]
[320976187,1711726268401,-500.0,0.00050958,120]
[320976188,1711726268412,-500.0,0.00050958,120]
[320976189,1711726268424,-500.0,0.00050958,120]
[320976190,1711726268435,-500.0,0.00050958,120]
[320976191,1711726268448,-500.0,0.00050958,120]
[320976192,1711726268459,-500.0,0.00050958,120]
[320976193,1711726268470,-500.0,0.00050958,120]
[320976194,1711726268481,-1095.45,0.00050958,120]
[320976195,1711726268492,-500.0,0.00050958,120]
[320976196,1711726268503,-500.0,0.00050958,120]
[320976197,1711726268513,-500.0,0.00050958,120]